fUSD/lending_fUSD_20240515
["ID","MTS","AMOUNT","RATE_DAILY","PERIOD"]
[327078148,1715788241059,-385.15966057,0.0001188,2]
[327078149,1715788241070,-269.63931206,0.00011898,2]
[327078150,1715788241079,-269.63931206,0.00011898,2]
[327078151,1715788241089,-269.63931206,0.00011898,2]
[327078152,1715788241100,-269.63931206,0.00011898,2]
[327078153,1715788241109,-269.63931206,0.00011898,2]
[327078154,1715788241119,-1000.0,0.00011899,2]
[327078155,1715788241127,-251.3683,0.00011899,2]
[327078156,1715788241136,-1000.0,0.000119,2]
[327078157,1715788241146,-5655.2043,0.000119,2]
[327078158,1715788241156,-170.54502057,0.000119,2]
[327078159,1715788241165,-8895.91090079,0.000119,2]
[327078160,1715788241175,-200.0,0.00011903,2]
[327078161,1715788241184,-200.0,0.00011904,2]
[327078162,1715788241193,-1000.0,0.00011904,2]
[327078163,1715788241203,-200.0,0.00011904,2]
[327078164,1715788241212,-500.0,0.00011904,2]
[327078165,1715788241222,-150.0,0.00011933,2]
[327078166,1715788241231,-973.0,0.00011941,2]
[327078167,1715788241242,-1399.0,0.00011941,2]
[327078168,1715788241252,-2158.0,0.00011941,2]
[327078169,1715788241261,-1790.0,0.00011941,2]
[327078170,1715788241273,-553.757,0.00011941,2]
[327078171,1715788241283,-810.0,0.00011941,2]
[327078172,1715788241292,-422.0,0.00011941,2]
[327078173,1715788241301,-612.0,0.00011941,2]
[327078174,1715788241311,-438.0,0.00011941,2]
[327078175,1715788241320,-2351.0,0.00011941,2]
[327078176,1715788241330,-1646.0,0.00011941,2]
[327078177,1715788241339,-444.0,0.00011941,2]
[327078178,1715788241347,-215.0,0.00011941,2]
[327078179,1715788241357,-3157.0,0.00011941,2]
[327078180,1715788241366,-1138.0,0.00011941,2]
[327078181,1715788241376,-37836.0,0.00011941,2]
[327078182,1715788241386,-5750.0,0.00011941,2]
[327078183,1715788241395,-5911.0,0.00011941,2]
[327078184,1715788241405,-1059.0,0.00011941,2]
[327078185,1715788241415,-177.57,0.00011942,2]
[327078186,1715788241430,-805.49,0.00011955,2]
[327078187,1715788241439,-406.01239291,0.00011955,2]
[327078188,1715788241450,-500.0,0.00011955,2]
[327078189,1715788241460,-500.0,0.00011955,2]
[327078190,1715788241470,-500.0,0.00011955,2]
[327078191,1715788241479,-500.0,0.00011955,2]
[327078192,1715788241488,-464.29,0.00011955,2]
[327078193,1715788241504,-500.0,0.00011955,2]
[327078194,1715788241514,-500.0,0.00011955,2]
[327078195,1715788241523,-150.29,0.00011955,2]
[327078196,1715788241533,-500.0,0.00011955,2]
[327078197,1715788241542,-500.0,0.00011955,2]
[327078198,1715788241552,-500.0,0.00011955,2]
[327078199,1715788241561,-500.0,0.00011955,2]
[327078200,1715788241570,-500.0,0.00011955,2]
[327078201,1715788241579,-500.0,0.00011955,2]
[327078202,1715788241588,-504.2520387,0.00011955,2]
[327078203,1715788241597,-607.71,0.00011955,2]
[327078204,1715788241606,-227.43,0.00011955,2]
[327078205,1715788241615,-575.45,0.00011955,2]
[327078206,1715788241624,-500.0,0.00011955,2]
[327078207,1715788241633,-223.82236474,0.00011955,2]
[327078208,1715788241642,-500.0,0.00011955,2]
[327078209,1715788241651,-500.0,0.00011955,2]
[327078210,1715788241661,-500.0,0.00011955,2]
[327078211,1715788241670,-282.92,0.00011955,2]
[327078212,1715788241679,-619.13,0.00011955,2]
[327078213,1715788241688,-500.0,0.00011955,2]
[327078214,1715788241697,-200.81,0.00011955,2]
[327078215,1715788241707,-500.0,0.00011955,2]
[327078216,1715788241715,-500.0,0.00011955,2]
[327078217,1715788241725,-500.0,0.00011955,2]
[327078218,1715788241734,-500.0,0.00011955,2]
[327078219,1715788241744,-500.0,0.00011955,2]
[327078220,1715788241754,-500.0,0.00011955,2]
[327078221,1715788241763,-500.0,0.00011955,2]
[327078222,1715788241772,-500.0,0.00011955,2]
[327078223,1715788241781,-700.0,0.0001197,2]
[327078224,1715788241790,-700.0,0.0001197,2]
[327078225,1715788241799,-704.93331911,0.0001197,2]
[327078226,1715788241808,-8895.91090075,0.00011991,2]
[327078227,1715788241818,-500.0,0.00011991,2]
[327078228,1715788241827,-500.0,0.00011991,2]
[327078229,1715788241836,-500.0,0.00011991,2]
[327078230,1715788241845,-500.0,0.00011991,2]
[327078231,1715788241854,-500.0,0.00011991,2]
[327078232,1715788241864,-479.0,0.00011991,2]
[327078233,1715788241873,-500.0,0.00011991,2]
[327078234,1715788241883,-162.2442746,0.00011991,2]
[327078235,1715788241892,-500.0,0.00011991,2]
[327078236,1715788241901,-500.0,0.00011991,2]
[327078237,1715788241910,-500.0,0.00011991,2]
[327078238,1715788241919,-522.45,0.00011991,2]
[327078239,1715788241928,-500.0,0.00011991,2]
[327078240,1715788241938,-500.0,0.00011991,2]
[327078241,1715788241947,-500.0,0.00011991,2]
[327078242,1715788241956,-500.0,0.00011991,2]
[327078243,1715788241966,-37.73915863,0.00011991,2]
[327078244,1715788242174,-462.26084137,0.00011991,2]
[327078245,1715788242184,-500.0,0.00011991,2]
[327078246,1715788242193,-500.0,0.00011991,2]
[327078247,1715788242202,-500.0,0.00011991,2]
[327078248,1715788242212,-500.0,0.00011991,2]
[327078249,1715788242220,-230.85,0.00011991,2]
[327078251,1715788242229,-120.16395863,0.00011991,2]
[327078252,1715788242242,-379.83604137,0.00011991,2]
[327078253,1715788242251,-500.0,0.00011991,2]
[327078254,1715788242260,-187.61229863,0.00011991,2]
[327078255,1715788242515,-500.0,0.0001178,2]
[327078256,1715788242525,-312.38770137,0.00011991,2]
[327078257,1715788242534,-22.72229863,0.00011991,2]
[327078258,1715788242544,-449.37000001,0.00011991,2]
[327078270,1715788243062,-27.90770136,0.00011991,2]
[327078271,1715788243072,-266.24224336,0.00011991,2]
[327078272,1715788243184,-233.75775664,0.00011991,2]
[327078273,1715788243193,-500.0,0.00011991,2]
[327078274,1715788243203,-500.0,0.00011991,2]
[327078275,1715788243212,-429.16961518,0.00011991,2]
[327078276,1715788243224,-70.83038482,0.00011991,2]
[327078277,1715788243233,-227.12337605,0.00011991,2]
[327078278,1715788243246,-272.87662395,0.00011991,2]
[327078279,1715788243256,-20.42858921,0.00011991,2]
[327078297,1715788246170,-1346.13,0.0001178,2]
[327078298,1715788246180,-500.0,0.0001178,2]
[327078299,1715788246188,-39.83568,0.00011991,2]
[327078300,1715788246235,-255.41169921,0.00011991,2]
[327078301,1715788246250,-274.21403158,0.00011991,2]
[327078302,1715788246259,-500.0,0.00011991,2]
[327078303,1715788246270,-611.85752579,0.00011991,2]
[327078304,1715788246279,-500.0,0.00011991,2]
[327078305,1715788246288,-500.0,0.00011991,2]
[327078306,1715788246298,-500.0,0.00011991,2]
[327078307,1715788246308,-675.28145212,0.00011991,2]
[327078308,1715788246320,-516.18854788,0.00011991,2]
[327078309,1715788246330,-1346.13,0.00011991,2]
[327078310,1715788246340,-500.0,0.00011991,2]
[327078311,1715788246350,-18630.8632647,0.00011992,2]
[327078312,1715788246360,-14331.2833544,0.00011992,2]
[327078315,1715788246369,-10031.7034442,0.00011992,2]
[327078316,1715788246379,-5732.123534,0.00011992,2]
[327078318,1715788246389,-1432.5436237,0.00011992,2]
[327078320,1715788246399,-18220.9657404,0.00011992,2]
[327078322,1715788246408,-14009.1320645,0.00011992,2]
[327078324,1715788246419,-9797.2983887,0.00011992,2]
[327078326,1715788246431,-5585.4647129,0.00011992,2]
[327078328,1715788246440,-1373.6310371,0.00011992,2]
[327078330,1715788246449,-3502.024581,0.00011992,2]
[327078332,1715788246459,-2692.5205583,0.00011992,2]
[327078334,1715788246470,-1883.0165357,0.00011992,2]
[327078336,1715788246479,-1073.512513,0.00011992,2]
[327078338,1715788246489,-264.0084903,0.00011992,2]
[327078340,1715788246504,-2598.5025706,0.00011992,2]
[327078342,1715788246514,-1997.8505092,0.00011992,2]
[327078344,1715788246524,-1397.1984477,0.00011992,2]
[327078346,1715788246533,-796.5463862,0.00011992,2]
[327078348,1715788246542,-195.8943248,0.00011992,2]
[327078350,1715788246551,-22432.7994162,0.00011994,2]
[327078352,1715788246560,-4311.5286037,0.00011994,2]
[327078354,1715788246569,-3199.1546321,0.00011994,2]
[327078356,1715788246578,-500.0,0.00011997,2]
[327078358,1715788246588,-500.0,0.00011997,2]
[327078360,1715788246597,-500.0,0.00011997,2]
[327078362,1715788246606,-500.0,0.00011997,2]
[327078364,1715788246616,-308.67,0.00011997,2]
[327078366,1715788246625,-500.0,0.00011997,2]
[327078368,1715788246634,-271.2,0.00011997,2]
[327078370,1715788246644,-500.0,0.00011997,2]
[327078372,1715788246654,-500.0,0.00011997,2]
[327078374,1715788246664,-500.0,0.00011997,2]
[327078376,1715788246675,-318.82,0.00011997,2]
[327078377,1715788246686,-513.41243983,0.00011997,2]
[327078380,1715788246697,-150.0,0.00011997,2]
[327078382,1715788246707,-500.0,0.00011997,2]
[327078383,1715788246716,-500.0,0.00011997,2]
[327078385,1715788246725,-162.71,0.00011997,2]
[327078388,1715788246735,-500.0,0.00011997,2]
[327078390,1715788246748,-398.61,0.00011997,2]
[327078392,1715788246757,-500.0,0.00011997,2]
[327078393,1715788246767,-405.04,0.00011997,2]
[327078394,1715788246776,-500.0,0.00011997,2]
[327078395,1715788246786,-500.0,0.00011997,2]
[327078396,1715788246795,-500.0,0.00011997,2]
[327078397,1715788246804,-500.0,0.00011997,2]
[327078398,1715788246814,-348.76,0.00011997,2]
[327078399,1715788246823,-500.0,0.00011997,2]
[327078400,1715788246831,-500.0,0.00011997,2]
[327078401,1715788246841,-598.15,0.00011997,2]
[327078402,1715788246850,-506.85,0.00011997,2]
[327078403,1715788246859,-538.41,0.00011997,2]
[327078404,1715788246868,-300.37,0.00011997,2]
[327078405,1715788246878,-444.81,0.00011997,2]
[327078406,1715788246887,-436.97,0.00011997,2]
[327078407,1715788246897,-500.0,0.00011997,2]
[327078408,1715788246907,-500.0,0.00011997,2]
[327078409,1715788246916,-500.0,0.00011997,2]
[327078410,1715788246925,-500.0,0.00011997,2]
[327078411,1715788246936,-835.42,0.00011997,2]
[327078412,1715788246945,-500.0,0.00011997,2]
[327078413,1715788246954,-500.0,0.00011997,2]
[327078414,1715788246964,-500.0,0.00011997,2]
[327078415,1715788246973,-500.0,0.00011997,2]
[327078416,1715788246983,-500.0,0.00011997,2]
[327078417,1715788246993,-2360.79430003,0.00011998,2]
[327078418,1715788247005,-4717.3300096,0.00011998,2]
[327078419,1715788247014,-1632.68349769,0.00011998,2]
[327078420,1715788247023,-2011.98692978,0.00011998,2]
[327078421,1715788247032,-2561.89837702,0.00011998,2]
[327078422,1715788247041,-237.13391756,0.00011998,2]
[327078423,1715788247051,-537.0035074,0.00011998,2]
[327078424,1715788247060,-3057.4434008,0.00011998,2]
[327078425,1715788247070,-156.37463375,0.00011998,2]
[327078426,1715788247079,-528.24751457,0.00011998,2]
[327078427,1715788247090,-500.0,0.00011998,2]
[327078428,1715788247099,-500.0,0.00011998,2]
[327078429,1715788247109,-51481.82108441,0.00011998,2]
[327078430,1715788247119,-279.33998489,0.00011998,2]
[327078431,1715788247128,-500.0,0.00011998,2]
[327078432,1715788247138,-500.0,0.00011998,2]
[327078433,1715788247147,-500.0,0.00011998,2]
[327078434,1715788247157,-307.54944384,0.00011998,2]
[327078435,1715788247166,-496.58427623,0.00011998,2]
[327078436,1715788247175,-500.0,0.00011998,2]
[327078437,1715788247185,-500.0,0.00011998,2]
[327078438,1715788247194,-500.0,0.00011998,2]
[327078439,1715788247204,-500.0,0.00011998,2]
[327078440,1715788247213,-500.0,0.00011998,2]
[327078441,1715788247223,-500.0,0.00011998,2]
[327078442,1715788247232,-500.0,0.00011998,2]
[327078443,1715788247242,-500.0,0.00011998,2]
[327078444,1715788247252,-258.754884,0.00011998,2]
[327078445,1715788247261,-643.79,0.00011998,2]
[327078446,1715788247270,-500.0,0.00011998,2]
[327078447,1715788247280,-500.0,0.00011998,2]
[327078448,1715788247289,-500.0,0.00011998,2]
[327078449,1715788247299,-522.45,0.00011998,2]
[327078450,1715788247307,-522.45,0.00011998,2]
[327078451,1715788247317,-500.0,0.00011998,2]
[327078452,1715788247326,-500.0,0.00011998,2]
[327078453,1715788247336,-500.0,0.00011998,2]
[327078454,1715788247345,-500.0,0.00011998,2]
[327078455,1715788247355,-500.0,0.00011998,2]
[327078456,1715788247365,-500.0,0.00011998,2]
[327078457,1715788247373,-500.0,0.00011998,2]
[327078458,1715788247383,-500.0,0.00011998,2]
[327078459,1715788247392,-156.6585173,0.00011998,2]
[327078533,1715789432181,-155.0,8.828e-05,2]
[327078534,1715789432190,-817.82411991,8.829e-05,2]
[327078535,1715789432210,-158.05181906,8.829e-05,2]
[327078536,1715789432222,-1174.68616234,8.83e-05,2]
[327078537,1715789432243,-1076.98983766,8.83e-05,2]
[327078538,1715789432253,-533.05127413,8.832e-05,2]
[327078539,1715789432262,-3866.45,8.955e-05,2]
[327078540,1715789432272,-4086.244758,9.85e-05,2]
[327078541,1715789432282,-6332.6474,9.9e-05,2]
[327078542,1715789432292,-615.69908829,0.0001,2]
[327078543,1715789432302,-158.11,0.00010411,2]
[327078544,1715789432313,-836.9,0.00010709,2]
[327078545,1715789432323,-1000.0,0.00010715,2]
[327078546,1715789432333,-250.0,0.00010733,2]
[327078547,1715789432343,-1152.56,0.00010742,2]
[327078548,1715789432353,-170.63,0.00010745,2]
[327078549,1715789432363,-158.84,0.00010866,2]
[327078550,1715789432373,-150.0,0.00010959,2]
[327078551,1715789432382,-499.99,0.00010959,2]
[327078552,1715789432392,-1408.86,0.00010959,3]
[327078553,1715789432402,-750.87176025,0.00011,2]
[327078554,1715789432411,-868.79,0.00011096,2]
[327078555,1715789432421,-2458.93688736,0.0001119,2]
[327078556,1715789432430,-100000.0,0.000112,2]
[327078557,1715789432441,-5088.5566,0.000112,2]
[327078558,1715789432450,-523.42,0.0001137,2]
[327078559,1715789432461,-150.0,0.0001137,2]
[327078560,1715789432470,-420.25,0.0001137,2]
[327078561,1715789432480,-150.0,0.0001137,2]
[327078562,1715789432489,-702.5,0.0001137,2]
[327078563,1715789432499,-163.27,0.0001137,2]
[327078564,1715789432509,-959.36378921,0.00011397,2]
[327078565,1715789432518,-1347.52581324,0.00011526,2]
[327078566,1715789432528,-10282.8307,0.0001168,2]
[327078567,1715789432538,-2506.5013,0.0001168,2]
[327078568,1715789432548,-2046.9704,0.00011683,2]
[327078570,1715789432559,-150.0,0.00011726,2]
[327078572,1715789432569,-150.0,0.00011732,2]
[327078574,1715789432579,-150.0,0.00011732,2]
[327078576,1715789432589,-150.0,0.00011735,2]
[327078579,1715789432598,-150.0,0.00011737,2]
[327078582,1715789432608,-150.0,0.00011743,2]
[327078585,1715789432618,-150.0,0.00011744,2]
[327078589,1715789432627,-150.0,0.00011747,2]
[327078592,1715789432637,-300.0,0.00011747,2]
[327078595,1715789432647,-150.0,0.0001175,2]
[327078598,1715789432656,-242.98211896,0.0001175,2]
[327078600,1715789432666,-150.0,0.00011752,2]
[327078602,1715789432675,-150.0,0.00011755,2]
[327078604,1715789432685,-150.0,0.00011756,2]
[327078606,1715789432695,-150.0,0.00011756,2]
[327078608,1715789432704,-150.0,0.00011758,2]
[327078610,1715789432713,-150.0,0.0001176,2]
[327078612,1715789432723,-150.0,0.0001176,2]
[327078614,1715789432733,-150.0,0.00011762,2]
[327078616,1715789432743,-150.0,0.00011763,2]
[327078618,1715789432752,-150.0,0.00011771,2]
[327078620,1715789432763,-150.0,0.00011777,2]
[327078622,1715789432773,-150.0,0.00011779,2]
[327078624,1715789432786,-500.0,0.0001178,2]
[327078626,1715789432795,-500.0,0.0001178,2]
[327078628,1715789432804,-500.0,0.0001178,2]
[327078630,1715789432818,-500.0,0.0001178,2]
[327078631,1715789432830,-480.71227677,0.0001178,2]
[327078633,1715789432841,-500.0,0.0001178,2]
[327078636,1715789432855,-500.0,0.0001178,2]
[327078638,1715789432869,-500.0,0.0001178,2]
[327078640,1715789432879,-500.0,0.0001178,2]
[327078642,1715789432889,-500.0,0.0001178,2]
[327078645,1715789432899,-500.0,0.0001178,2]
[327078647,1715789432908,-369.93010621,0.0001178,2]
[327078648,1715789432918,-500.0,0.0001178,2]
[327078651,1715789432928,-500.0,0.0001178,2]
[327078653,1715789432938,-500.0,0.0001178,2]
[327078655,1715789432948,-500.0,0.0001178,2]
[327078657,1715789432965,-500.0,0.0001178,2]
[327078659,1715789432982,-500.0,0.0001178,2]
[327078661,1715789432993,-500.0,0.0001178,2]
[327078663,1715789433003,-500.0,0.0001178,2]
[327078665,1715789433013,-500.0,0.0001178,2]
[327078667,1715789433024,-500.0,0.0001178,2]
[327078669,1715789433033,-150.0,0.00011784,2]
[327078671,1715789433043,-150.0,0.00011785,2]
[327078673,1715789433053,-150.0,0.00011787,2]
[327078675,1715789433065,-150.0,0.00011793,2]
[327078677,1715789433076,-150.0,0.00011794,2]
[327078679,1715789433086,-150.0,0.00011794,2]
[327078681,1715789433095,-150.0,0.00011795,2]
[327078683,1715789433105,-150.0,0.00011795,2]
[327078685,1715789433115,-150.0,0.00011798,2]
[327078688,1715789433125,-899.6272,0.00011799,2]
[327078690,1715789433134,-150.0,0.00011805,2]
[327078692,1715789433144,-150.0,0.00011808,2]
[327078694,1715789433155,-150.0,0.00011819,2]
[327078696,1715789433165,-235.0,0.0001182,2]
[327078698,1715789433175,-389.0,0.0001182,2]
[327078700,1715789433184,-150.0,0.0001182,2]
[327078702,1715789433194,-150.0,0.00011821,2]
[327078704,1715789433205,-150.0,0.00011827,2]
[327078706,1715789433215,-150.0,0.00011829,2]
[327078708,1715789433224,-150.0,0.00011833,2]
[327078710,1715789433234,-150.0,0.00011836,2]
[327078712,1715789433244,-150.0,0.00011837,2]
[327078714,1715789433253,-150.0,0.00011839,2]
[327078716,1715789433263,-150.0,0.00011846,2]
[327078718,1715789433273,-150.0,0.00011848,2]
[327078720,1715789433283,-150.0,0.00011851,2]
[327078722,1715789433292,-150.0,0.00011852,2]
[327078724,1715789433302,-150.0,0.00011858,2]
[327078726,1715789433314,-150.0,0.00011866,2]
[327078728,1715789433323,-150.0,0.00011872,2]
[327078730,1715789433332,-150.0,0.00011873,2]
[327078732,1715789433343,-150.0,0.00011877,2]
[327078734,1715789433352,-150.0,0.00011877,2]
[327078735,1715789433363,-150.0,0.00011878,2]
[327078736,1715789433372,-150.0,0.00011878,2]
[327078737,1715789433383,-150.0,0.00011878,2]
[327078738,1715789433393,-150.0,0.00011879,2]
[327078739,1715789433402,-354.96848625,0.0001188,2]
[327078740,1715789433412,-150.0,0.0001188,2]
[327078741,1715789433422,-150.0,0.00011882,2]
[327078742,1715789433432,-158.1095261,0.0001189,2]
[327078743,1715789433443,-171.03103542,0.0001189,2]
[327078744,1715789433452,-150.0,0.00011891,2]
[327078745,1715789433462,-150.0,0.00011891,2]
[327078746,1715789433473,-150.0,0.00011895,2]
[327078747,1715789433482,-150.0,0.00011896,2]
[327078748,1715789433493,-150.0,0.00011897,2]
[327078749,1715789433503,-150.0,0.00011898,2]
[327078750,1715789433514,-150.0,0.00011898,2]
[327078751,1715789433524,-168.5245701,0.00011898,2]
[327078752,1715789433534,-168.52457004,0.00011898,2]
[327078753,1715789433544,-168.52457004,0.00011898,2]
[327078754,1715789433554,-3339.3488,0.00011898,2]
[327078755,1715789433565,-895.9951,0.00011899,2]
[327078756,1715789433575,-18171.3,0.00011899,2]
[327078757,1715789433584,-10000.0,0.00011899,2]
[327078758,1715789433594,-150.0,0.00011899,2]
[327078759,1715789433605,-179.06200612,0.000119,2]
[327078760,1715789433615,-8780.94114549,0.000119,2]
[327078761,1715789433625,-173.1639208,0.000119,2]
[327078762,1715789433634,-2848.56486646,0.000119,2]
[327078763,1715789433644,-150.0,0.00011902,2]
[327078764,1715789433654,-200.0,0.00011904,2]
[327078765,1715789433665,-200.0,0.00011904,2]
[327078766,1715789433675,-1000.0,0.00011904,2]
[327078767,1715789433686,-500.0,0.00011904,2]
[327078768,1715789433697,-150.0,0.00011905,2]
[327078769,1715789433708,-150.0,0.00011906,2]
[327078770,1715789433719,-150.0,0.00011906,2]
[327078771,1715789433731,-150.0,0.00011912,2]
[327078772,1715789433741,-150.0,0.00011916,2]
[327078773,1715789433752,-150.0,0.00011916,2]
[327078774,1715789433762,-150.0,0.00011922,2]
[327078775,1715789433773,-150.0,0.00011923,2]
[327078776,1715789433787,-150.0,0.00011926,2]
[327078777,1715789433797,-150.0,0.00011929,2]
[327078778,1715789433809,-156.42,0.00011931,2]
[327078779,1715789433819,-150.0,0.00011931,2]
[327078780,1715789433830,-150.0,0.00011933,2]
[327078781,1715789433841,-150.0,0.00011934,2]
[327078782,1715789433851,-150.0,0.00011935,2]
[327078783,1715789433864,-150.0,0.00011936,2]
[327078784,1715789433875,-500.0,0.0001194,2]
[327078785,1715789433887,-500.0,0.0001194,2]
[327078786,1715789433897,-500.0,0.0001194,2]
[327078787,1715789433908,-500.0,0.0001194,2]
[327078788,1715789433918,-500.0,0.0001194,2]
[327078789,1715789433930,-500.0,0.0001194,2]
[327078790,1715789433941,-500.0,0.0001194,2]
[327078791,1715789433950,-500.0,0.0001194,2]
[327078792,1715789433960,-500.0,0.0001194,2]
[327078793,1715789433970,-500.0,0.0001194,2]
[327078794,1715789433980,-500.0,0.0001194,2]
[327078795,1715789433990,-500.0,0.0001194,2]
[327078796,1715789434000,-500.0,0.0001194,2]
[327078797,1715789434010,-500.0,0.0001194,2]
[327078798,1715789434020,-500.0,0.0001194,2]
[327078799,1715789434030,-500.0,0.0001194,2]
[327078800,1715789434040,-500.0,0.0001194,2]
[327078801,1715789434050,-233.41,0.0001194,2]
[327078802,1715789434062,-500.0,0.0001194,2]
[327078803,1715789434072,-380.74,0.0001194,2]
[327078804,1715789434083,-500.0,0.0001194,2]
[327078805,1715789434093,-586.12,0.0001194,2]
[327078806,1715789434103,-525.71484714,0.0001194,2]
[327078807,1715789434112,-500.0,0.0001194,2]
[327078808,1715789434121,-500.0,0.0001194,2]
[327078809,1715789434131,-546.09,0.0001194,2]
[327078810,1715789434140,-540.73,0.0001194,2]
[327078811,1715789434150,-1233.95,0.0001194,2]
[327078812,1715789434160,-500.0,0.0001194,2]
[327078813,1715789434169,-245.731,0.00011941,2]
[327078814,1715789434179,-2158.0,0.00011941,2]
[327078815,1715789434188,-972.0,0.00011941,2]
[327078816,1715789434198,-1399.0,0.00011941,2]
[327078817,1715789434208,-1226.0,0.00011941,2]
[327078818,1715789434218,-543.0,0.00011941,2]
[327078819,1715789434227,-1790.0,0.00011941,2]
[327078820,1715789434237,-1261.0,0.00011941,2]
[327078821,1715789434246,-422.0,0.00011941,2]
[327078822,1715789434256,-810.0,0.00011941,2]
[327078823,1715789434273,-439.619,0.00011941,2]
[327078824,1715789434286,-617.615,0.00011941,2]
[327078825,1715789434295,-164.0,0.00011941,2]
[327078826,1715789434305,-2351.0,0.00011941,2]
[327078827,1715789434319,-1646.0,0.00011941,2]
[327078828,1715789434329,-151.893,0.00011941,2]
[327078829,1715789434338,-3157.0,0.00011941,2]
[327078830,1715789434347,-215.0,0.00011941,2]
[327078831,1715789434356,-444.0,0.00011941,2]
[327078832,1715789434365,-1138.0,0.00011941,2]
[327078833,1715789434375,-5885.194,0.00011941,2]
[327078834,1715789434384,-293.431,0.00011941,2]
[327078835,1715789434393,-5911.0,0.00011941,2]
[327078836,1715789434402,-37836.0,0.00011941,2]
[327078837,1715789434412,-150.0,0.00011946,2]
[327078838,1715789434421,-150.0,0.00011951,2]
[327078839,1715789434430,-225.5401325,0.00011953,2]
[327078840,1715789434439,-674.0,0.00011956,2]
[327078841,1715789434448,-150.0,0.00011956,2]
[327078842,1715789434458,-150.0,0.00011956,2]
[327078843,1715789434467,-150.0,0.00011958,2]
[327078844,1715789434477,-150.0,0.0001196,2]
[327078845,1715789434486,-150.0,0.00011962,2]
[327078846,1715789434496,-150.0,0.00011963,2]
[327078847,1715789434505,-150.0,0.00011965,2]
[327078848,1715789434514,-329.00746647,0.00011966,2]
[327078849,1715789434524,-500.0,0.00011966,2]
[327078850,1715789434533,-647.31536195,0.00011966,2]
[327078851,1715789434542,-221.22796827,0.00011966,2]
[327078852,1715789434551,-500.0,0.00011966,2]
[327078853,1715789434564,-545.72521129,0.00011966,2]
[327078854,1715789434573,-500.0,0.00011966,2]
[327078855,1715789434582,-500.0,0.00011966,2]
[327078856,1715789434592,-596.72,0.00011966,2]
[327078857,1715789434602,-150.0,0.00011966,2]
[327078858,1715789434611,-500.0,0.00011966,2]
[327078859,1715789434620,-462.19,0.00011966,2]
[327078860,1715789434630,-500.0,0.00011966,2]
[327078861,1715789434640,-500.0,0.00011966,2]
[327078862,1715789434649,-500.0,0.00011966,2]
[327078863,1715789434659,-500.0,0.00011966,2]
[327078864,1715789434669,-500.0,0.00011966,2]
[327078865,1715789434679,-568.6719608,0.00011966,2]
[327078866,1715789434689,-500.0,0.00011966,2]
[327078867,1715789434698,-341.87,0.00011966,2]
[327078868,1715789434707,-313.13540601,0.00011966,2]
[327078869,1715789434717,-426.67,0.00011966,2]
[327078870,1715789434726,-434.57611619,0.00011966,2]
[327078871,1715789434735,-500.0,0.00011966,2]
[327078872,1715789434744,-500.0,0.00011966,2]
[327078873,1715789434753,-215.88316688,0.00011966,2]
[327078874,1715789434763,-500.0,0.00011966,2]
[327078875,1715789434773,-500.0,0.00011966,2]
[327078876,1715789434782,-500.0,0.00011966,2]
[327078877,1715789434795,-500.0,0.00011966,2]